fUSD/lending_fUSD_20240414
["ID","MTS","AMOUNT","RATE_DAILY","PERIOD"]
[322610085,1713118549707,-1114.3,0.00035616,30]
[322610086,1713118549741,-1114.3,0.00035616,30]
[322610087,1713118549777,-1114.3,0.00035616,30]
[322610088,1713118549814,-1114.3,0.00035616,30]
[322610089,1713118549851,-1114.3,0.00035616,30]
[322610090,1713118549891,-1114.3,0.00035616,30]
[322610091,1713118549927,-1114.3,0.00035616,30]
[322610092,1713118549961,-1114.3,0.00035616,30]
[322610093,1713118549998,-1114.3,0.00035616,30]
[322610094,1713118550032,-1114.3,0.00035616,30]
[322610095,1713118550065,-1114.3,0.00035616,30]
[322610096,1713118550097,-1114.3,0.00035616,30]
[322610097,1713118550129,-1114.3,0.00035616,30]
[322610098,1713118550162,-1114.48779926,0.00035616,30]
[322610099,1713118550195,-2500.0,0.00035642,30]
[322610100,1713118550227,-1004.68,0.0003567,30]
[322610101,1713118550259,-500.0,0.00035697,30]
[322610102,1713118550304,-500.0,0.00035697,30]
[322610103,1713118550337,-500.0,0.00035697,30]
[322610104,1713118550371,-157.04142,0.00035798,35]
[322610105,1713118550403,-3000.0,0.00035829,30]
[322610106,1713118550435,-2500.0,0.00035876,30]
[322610107,1713118550467,-1862.54633,0.0003593,30]
[322610108,1713118550500,-2000.0,0.00035999,30]
[322610109,1713118550531,-150.0,0.00035999,30]
[322610110,1713118550562,-25681.26,0.00036,30]
[322610111,1713118550593,-15500.0,0.00036,30]
[322610112,1713118550626,-1200.0,0.00036,37]
[322610113,1713118550658,-150.0,0.00036,30]
[322610114,1713118550691,-15500.0,0.00036,30]
[322610115,1713118550725,-157.04142,0.00036198,36]
[322610116,1713118551961,-2500.0,0.00036295,30]
[322610117,1713118552024,-10000.0,0.00036362,30]
[322610118,1713118552057,-600.0,0.000364,120]
[322610119,1713118552094,-314.08284,0.00036498,37]
[322610120,1713118552131,-314.08284,0.00036798,38]
[322610121,1713118552164,-150.0,0.00036815,120]
[322610122,1713118552196,-1200.0,0.00037,38]
[322610123,1713118552229,-157.04142,0.00037198,32]
[322610124,1713118552263,-150.0,0.00037256,120]
[322610125,1713118552300,-157.04142,0.00037498,33]
[322610126,1713118552335,-157.04142,0.00037798,34]
[322610127,1713118552367,-1200.0,0.00038,39]
[322610128,1713118552399,-150.0,0.00038178,120]
[322610129,1713118552432,-157.04142,0.00038198,35]
[322610130,1713118552464,-157.04142,0.00038498,36]
[322610131,1713118552497,-157.04142,0.00038798,37]
[322610132,1713118552529,-1200.0,0.00039,40]
[322610133,1713118552560,-150.0,0.00039028,120]
[322610134,1713118552593,-150.0,0.00039045,120]
[322610135,1713118552627,-1208.0,0.0003911,30]
[322610136,1713118552659,-157.04142,0.00039198,38]
[322610137,1713118552691,-157.04142,0.00039498,39]
[322610138,1713118552722,-79985.31837341,0.000395,30]
[322610139,1713118552765,-157.04142,0.00039798,40]
[322610140,1713118552800,-17987.81629077,0.000399,48]
[322610141,1713118552833,-195.93589399,0.00039999,31]
[322610142,1713118552867,-172.84765277,0.00039999,31]
[322610143,1713118552899,-500.0,0.00039999,31]
[322610144,1713118552933,-500.0,0.00039999,31]
[322610145,1713118552967,-500.0,0.00039999,31]
[322610146,1713118552998,-500.0,0.00039999,31]
[322610147,1713118553029,-500.0,0.00039999,31]
[322610148,1713118553060,-500.0,0.00039999,31]
[322610149,1713118553091,-500.0,0.00039999,31]
[322610150,1713118553121,-254.5322865,0.00039999,31]
[322610151,1713118553151,-500.0,0.00039999,31]
[322610152,1713118553182,-500.0,0.00039999,31]
[322610153,1713118553215,-500.0,0.00039999,31]
[322610154,1713118553245,-500.0,0.00039999,31]
[322610155,1713118553279,-500.0,0.00039999,31]
[322610156,1713118553310,-500.0,0.00039999,31]
[322610157,1713118553343,-500.0,0.00039999,31]
[322610158,1713118553374,-350.0,0.00039999,31]
[322610159,1713118553405,-465.0,0.00039999,31]
[322610160,1713118553436,-315.0,0.00039999,31]
[322610161,1713118553468,-300.0,0.00039999,31]
[322610162,1713118553500,-300.0,0.00039999,31]
[322610163,1713118553530,-535.59061074,0.00039999,31]
[322610164,1713118553561,-500.0,0.00039999,31]
[322610165,1713118553592,-250.0,0.00039999,31]
[322610166,1713118553626,-50000.0,0.0004,30]
[322610167,1713118553657,-50000.0,0.0004,40]
[322610168,1713118553688,-959.45180685,0.0004,30]
[322610169,1713118553719,-1399.8046501,0.0004,30]
[322610170,1713118553750,-365.47266567,0.0004,30]
[322610171,1713118553783,-402.81108403,0.0004,30]
[322610172,1713118553820,-749.76878721,0.0004,30]
[322610173,1713118553854,-529.95923217,0.0004,120]
[322610174,1713118553891,-3232.27565572,0.0004,30]
[322610175,1713118553925,-1200.0,0.0004,41]
[322610176,1713118553959,-800.0,0.0004,30]
[322610177,1713118553992,-2000.0,0.0004,30]
[322610178,1713118554026,-261.92511409,0.0004,30]
[322610179,1713118554062,-150.0,0.00040171,120]
[322610180,1713118554100,-157.04142,0.00040198,41]
[322610181,1713118554135,-314.065624,0.00040488,38]
[322610182,1713118554169,-157.04142,0.00040498,44]
[322610183,1713118554201,-150.0,0.00040588,120]
[322610184,1713118554233,-150.0,0.00040615,120]
[322610185,1713118554268,-157.04142,0.00040798,47]
[322610186,1713118554303,-50000.0,0.00041,41]
[322610187,1713118554336,-50000.0,0.00041,31]
[322610188,1713118554369,-1200.0,0.00041,42]
[322610189,1713118554403,-150.0,0.00041072,120]
[322610190,1713118554435,-1153.56,0.00041095,30]
[322610191,1713118554466,-1153.56,0.00041095,30]
[322610192,1713118554497,-1153.56,0.00041095,30]
[322610193,1713118554528,-1153.56,0.00041095,30]
[322610194,1713118554559,-1153.56,0.00041095,30]
[322610195,1713118554590,-1153.56,0.00041095,30]
[322610196,1713118554622,-1153.56,0.00041095,30]
[322610197,1713118554653,-1153.56,0.00041095,30]
[322610198,1713118554684,-1153.56,0.00041095,30]
[322610199,1713118554716,-1153.56,0.00041095,30]
[322610200,1713118554747,-1153.56,0.00041095,30]
[322610201,1713118554779,-1153.56,0.00041095,30]
[322610202,1713118554811,-1153.56,0.00041095,30]
[322610203,1713118554842,-1153.56,0.00041095,30]
[322610204,1713118554873,-1153.56,0.00041095,30]
[322610205,1713118554906,-1153.56,0.00041095,30]
[322610206,1713118554938,-1153.56,0.00041095,30]
[322610207,1713118554970,-1153.56,0.00041095,30]
[322610208,1713118555002,-1153.56,0.00041095,30]
[322610209,1713118555033,-1153.56,0.00041095,30]
[322610210,1713118555066,-1153.56,0.00041095,30]
[322610211,1713118555098,-1153.56,0.00041095,30]
[322610212,1713118555129,-1153.56,0.00041095,30]
[322610213,1713118555394,-1153.68109724,0.00041095,30]
[322610214,1713118555428,-1292.15,0.00041095,30]
[322610215,1713118555460,-1292.15,0.00041095,30]
[322610216,1713118555491,-1292.15,0.00041095,30]
[322610217,1713118555524,-1292.15,0.00041095,30]
[322610218,1713118555555,-1292.15,0.00041095,30]
[322610219,1713118555588,-1292.15,0.00041095,30]
[322610220,1713118555619,-1292.15,0.00041095,30]
[322610221,1713118555650,-1292.15,0.00041095,30]
[322610222,1713118555681,-1292.15,0.00041095,30]
[322610223,1713118555719,-1292.15,0.00041095,30]
[322610224,1713118555774,-1292.15,0.00041095,30]
[322610225,1713118555829,-1292.15,0.00041095,30]
[322610226,1713118555876,-1292.15,0.00041095,30]
[322610227,1713118555908,-1292.15,0.00041095,30]
[322610228,1713118555939,-1292.15,0.00041095,30]
[322610229,1713118555970,-1292.15,0.00041095,30]
[322610230,1713118556017,-1292.15,0.00041095,30]
[322610231,1713118556053,-1292.15,0.00041095,30]
[322610232,1713118556084,-1292.15,0.00041095,30]
[322610233,1713118556116,-1292.15,0.00041095,30]
[322610234,1713118556149,-1292.15,0.00041095,30]
[322610235,1713118556182,-1292.15,0.00041095,30]
[322610236,1713118556219,-1292.15,0.00041095,30]
[322610237,1713118556250,-1292.35892289,0.00041095,30]
[322610238,1713118556285,-150.0,0.0004158,120]
[322610239,1713118556319,-150.0,0.00041853,120]
[322610240,1713118556353,-162.67001241,0.00041901,30]
[322610241,1713118556386,-379.25137841,0.00041903,30]
[322610242,1713118556419,-334.14217063,0.00041971,30]
[322610243,1713118556451,-222.59876387,0.00041994,30]
[322610244,1713118556485,-50000.0,0.00042,32]
[322610245,1713118556520,-50000.0,0.00042,42]
[322610246,1713118556555,-1200.0,0.00042,43]
[322610247,1713118556589,-2000.0,0.00042,30]
[322610248,1713118556621,-2000.0,0.00042,30]
[322610249,1713118556652,-2000.0,0.00042,30]
[322610250,1713118556684,-1982.57284218,0.00042,30]
[322610251,1713118556716,-2000.0,0.00042,30]
[322610252,1713118556747,-150.0,0.00042,120]
[322610253,1713118556780,-4311.0523,0.00042059,30]
[322610254,1713118556812,-154.781344,0.00042059,30]
[322610255,1713118556845,-406.05169,0.00042059,30]
[322610256,1713118556877,-170.03737,0.00042059,30]
[322610257,1713118556909,-609.077537,0.00042059,30]
[322610258,1713118556940,-200.0,0.00042059,30]
[322610259,1713118556971,-1943.226657,0.00042059,30]
[322610260,1713118557003,-1387.036605,0.00042059,30]
[322610261,1713118557034,-161.103147,0.00042059,30]
[322610262,1713118557066,-161.103147,0.00042059,30]
[322610263,1713118557099,-331.55526884,0.00042088,30]
[322610264,1713118557131,-170.56107801,0.00042124,30]
[322610265,1713118557162,-170.56107801,0.00042178,30]
[322610266,1713118557196,-157.04142,0.00042198,30]
[322610267,1713118557230,-170.83248823,0.000422,30]
[322610268,1713118557261,-379.25137841,0.00042228,30]
[322610269,1713118557296,-326.49425653,0.00042275,30]
[322610270,1713118557329,-170.56107801,0.00042299,30]
[322610271,1713118557363,-334.14217063,0.00042311,30]
[322610272,1713118557397,-166.75619801,0.00042339,30]
[322610273,1713118557431,-150.5082454,0.00042345,30]
[322610274,1713118557467,-379.25137841,0.00042395,30]
[322610275,1713118557501,-170.56107801,0.00042395,30]
[322610276,1713118557536,-157.04142,0.00042498,33]
[322610277,1713118557570,-153.56677095,0.00042533,30]
[322610278,1713118557604,-159.98891826,0.00042545,30]
[322610279,1713118557638,-4311.0523,0.00042585,30]
[322610280,1713118557670,-406.05169,0.00042585,30]
[322610281,1713118557703,-609.077537,0.00042585,30]
[322610282,1713118557736,-200.0,0.00042585,30]
[322610283,1713118557767,-1943.226657,0.00042585,30]
[322610284,1713118557805,-1387.036605,0.00042585,30]
[322610285,1713118557840,-379.25137841,0.00042608,30]
[322610286,1713118557873,-334.14217063,0.00042634,30]
[322610287,1713118557909,-153.56677095,0.00042651,30]
[322610288,1713118557942,-170.56107801,0.00042674,30]
[322610289,1713118557977,-154.27827784,0.00042678,30]
[322610290,1713118558011,-157.06493952,0.00042694,30]
[322610291,1713118558046,-334.14217063,0.00042708,30]
[322610292,1713118558079,-331.55526884,0.00042731,30]
[322610293,1713118558112,-170.56107801,0.00042749,30]
[322610294,1713118558143,-266.833965,0.00042765,30]
[322610295,1713118558174,-213.467172,0.00042765,30]
[322610296,1713118558205,-258.437306,0.00042765,30]
[322610297,1713118558237,-240.038836,0.00042765,30]
[322610298,1713118558268,-163.462478,0.00042765,30]
[322610299,1713118558304,-1393.465363,0.00042765,30]
[322610300,1713118558339,-187.367047,0.00042765,30]
[322610301,1713118558372,-296.802962,0.00042765,30]
[322610302,1713118558403,-1046.36313,0.00042765,30]
[322610303,1713118558436,-180.985265,0.00042765,30]
[322610304,1713118558466,-208.608099,0.00042765,30]
[322610305,1713118558497,-206.32686,0.00042765,30]
[322610306,1713118558530,-416.408063,0.00042765,30]
[322610307,1713118558561,-171.920803,0.00042765,30]
[322610308,1713118558593,-171.920806,0.00042765,30]
[322610309,1713118558625,-213.646711,0.00042765,30]
[322610310,1713118558656,-158.537981,0.00042765,30]
[322610311,1713118558688,-261.590783,0.00042765,30]
[322610312,1713118558720,-209.272626,0.00042765,30]
[322610313,1713118558752,-180.712207,0.00042765,30]
[322610314,1713118558786,-161.391693,0.00042765,30]
[322610315,1713118558822,-157.04142,0.00042798,36]
[322610316,1713118558855,-170.83248823,0.00042801,30]
[322610317,1713118558888,-154.27827784,0.00042821,30]
[322610318,1713118559152,-156.20319218,0.00042936,30]
[322610319,1713118559187,-222.59876387,0.00042944,30]
[322610320,1713118559219,-156.90418898,0.00042951,30]
[322610321,1713118559249,-154.78946012,0.00042977,30]
[322610322,1713118559282,-50000.0,0.00043,43]
[322610323,1713118559316,-12910.66563008,0.00043,33]
[322610324,1713118662628,-500.0,0.00036232,30]
[322610325,1713118662662,-833.33,0.00036232,30]
[322610326,1713118662694,-502.03971486,0.00036232,30]
[322610327,1713118662725,-833.33,0.00036232,30]
[322610328,1713118662757,-833.33,0.00036232,30]
[322610329,1713118662789,-833.33,0.00036232,30]
[322610330,1713118662821,-833.33,0.00036232,30]
[322610331,1713118662861,-508.06591858,0.00036232,30]
[322610332,1713118662895,-833.33,0.00036232,30]
[322610333,1713118662928,-833.33,0.00036232,30]
[322610334,1713118662961,-833.33,0.00036232,30]
[322610335,1713118662993,-833.33,0.00036232,30]
[322610336,1713118663026,-833.33,0.00036232,30]
[322610337,1713118663057,-833.33,0.00036232,30]
[322610338,1713118663092,-833.33,0.00036232,30]
[322610339,1713118663123,-833.3768683,0.00036232,30]
[322610340,1713118663154,-500.0,0.00036232,30]
[322610341,1713118663185,-500.0,0.00036232,30]
[322610342,1713118663215,-231.90624033,0.00036232,30]
[322610343,1713118663246,-500.0,0.00036232,30]
[322610344,1713118663277,-642.89790687,0.00036232,30]
[322610345,1713118663309,-500.0,0.00036232,30]
[322610346,1713118663340,-503.18,0.00036232,30]
[322610347,1713118663370,-503.18,0.00036232,30]
[322610348,1713118663400,-511.96653732,0.00036232,30]
[322610349,1713118663431,-500.0,0.00036232,30]
[322610350,1713118663462,-503.18,0.00036232,30]
[322610351,1713118663493,-500.0,0.00036232,30]
[322610352,1713118663524,-503.18,0.00036232,30]
[322610353,1713118663555,-500.0,0.00036232,30]
[322610354,1713118663589,-503.18,0.00036232,30]
[322610355,1713118663621,-500.0,0.00036232,30]
[322610356,1713118663654,-503.18,0.00036232,30]
[322610357,1713118663685,-500.0,0.00036232,30]
[322610358,1713118663715,-503.18,0.00036232,30]
[322610359,1713118663745,-500.0,0.00036232,30]
[322610360,1713118663776,-503.18,0.00036232,30]
[322610361,1713118663807,-162.82971007,0.00036232,30]
[322610362,1713118663839,-503.18,0.00036232,30]
[322610363,1713118663874,-504.8411472,0.00036232,30]
[322610364,1713118663909,-503.18,0.00036232,30]
[322610365,1713118663940,-503.18,0.00036232,30]
[322610366,1713118663974,-503.18,0.00036232,30]
[322610367,1713118664008,-503.18,0.00036232,30]
[322610368,1713118664039,-503.18,0.00036232,30]
[322610369,1713118664070,-500.0,0.00036232,30]
[322610370,1713118664107,-500.0,0.00036232,30]
[322610371,1713118664138,-503.18,0.00036232,30]
[322610372,1713118664170,-504.11480933,0.00036232,30]
[322610373,1713118664201,-503.18,0.00036232,30]
[322610374,1713118664231,-503.18,0.00036232,30]
[322610375,1713118664262,-503.18,0.00036232,30]
[322610376,1713118664292,-503.18,0.00036232,30]
[322610377,1713118664322,-503.18,0.00036232,30]
[322610378,1713118664355,-503.18,0.00036232,30]
[322610379,1713118664385,-509.77242941,0.00036232,30]
[322610380,1713118664417,-503.18,0.00036232,30]
[322610381,1713118664448,-500.0,0.00036232,30]
[322610382,1713118664480,-500.0,0.00036232,30]
[322610383,1713118664511,-503.18,0.00036232,30]
[322610384,1713118664543,-500.0,0.00036232,30]
[322610385,1713118664574,-500.0,0.00036232,30]
[322610386,1713118664607,-503.37327989,0.00036232,30]
[322610387,1713118664639,-500.0,0.00036232,30]
[322610388,1713118664671,-500.0,0.00036232,30]
[322610389,1713118664702,-500.0,0.00036232,30]
[322610390,1713118664733,-516.37366807,0.00036232,30]
[322610391,1713118664764,-496.34626112,0.00036232,30]
[322610392,1713118664795,-500.0,0.00036232,30]
[322610393,1713118664826,-500.0,0.00036232,30]
[322610394,1713118664861,-501.86916999,0.00036232,30]
[322610395,1713118664895,-500.0,0.00036232,30]
[322610396,1713118664928,-500.0,0.00036232,30]
[322610397,1713118664962,-500.0,0.00036232,30]
[322610398,1713118664996,-500.0,0.00036232,30]
[322610399,1713118665028,-500.0,0.00036232,30]
[322610400,1713118665060,-624.61,0.00036232,30]
[322610401,1713118665353,-500.0,0.00036232,30]
[322610402,1713118665387,-502.97281979,0.00036232,30]
[322610403,1713118665419,-624.61,0.00036232,30]
[322610404,1713118665450,-500.0,0.00036232,30]
[322610405,1713118665483,-624.61,0.00036232,30]
[322610406,1713118665513,-500.0,0.00036232,30]
[322610407,1713118665544,-624.61,0.00036232,30]
[322610408,1713118665574,-617.54712334,0.00036232,30]
[322610409,1713118665609,-624.61,0.00036232,30]
[322610410,1713118665640,-624.61,0.00036232,30]
[322610411,1713118665671,-624.61,0.00036232,30]
[322610412,1713118665702,-624.61,0.00036232,30]
[322610413,1713118665733,-690.92,0.00036232,30]
[322610414,1713118665765,-624.61,0.00036232,30]
[322610415,1713118665796,-500.0,0.00036232,30]
[322610416,1713118665828,-690.92,0.00036232,30]
[322610417,1713118665863,-502.87431003,0.00036232,30]
[322610418,1713118665896,-624.61,0.00036232,30]
[322610419,1713118665932,-500.0,0.00036232,30]
[322610420,1713118665965,-690.92,0.00036232,30]
[322610421,1713118665996,-624.61,0.00036232,30]
[322610422,1713118666027,-690.92,0.00036232,30]
[322610423,1713118666060,-624.61,0.00036232,30]
[322610424,1713118666095,-690.92,0.00036232,30]
[322610425,1713118666129,-690.92,0.00036232,30]
[322610426,1713118666161,-690.92,0.00036232,30]
[322610427,1713118666192,-624.61,0.00036232,30]
[322610428,1713118666223,-690.92,0.00036232,30]
[322610429,1713118666253,-624.61,0.00036232,30]
[322610430,1713118666285,-690.92,0.00036232,30]
[322610431,1713118666317,-624.61,0.00036232,30]
[322610432,1713118666348,-500.0,0.00036232,30]
[322610433,1713118666381,-690.92,0.00036232,30]
[322610434,1713118666412,-624.61,0.00036232,30]
[322610435,1713118666443,-690.92,0.00036232,30]
[322610436,1713118666475,-500.0,0.00036232,30]
[322610437,1713118666506,-690.92,0.00036232,30]
[322610438,1713118666537,-624.61,0.00036232,30]
[322610439,1713118666568,-500.0,0.00036232,30]
[322610440,1713118666599,-500.0,0.00036232,30]
[322610441,1713118666630,-690.92,0.00036232,30]
[322610442,1713118666661,-624.61,0.00036232,30]
[322610443,1713118666693,-503.06640073,0.00036232,30]
[322610444,1713118666724,-500.0,0.00036232,30]
[322610445,1713118666755,-690.92,0.00036232,30]
[322610446,1713118666787,-624.61,0.00036232,30]
[322610447,1713118666818,-624.61,0.00036232,30]
[322610448,1713118666849,-500.0,0.00036232,30]
[322610449,1713118666882,-690.92,0.00036232,30]
[322610450,1713118666913,-624.61,0.00036232,30]
[322610451,1713118666948,-690.92,0.00036232,30]
[322610452,1713118666980,-624.61,0.00036232,30]
[322610453,1713118667012,-500.0,0.00036232,30]
[322610454,1713118667044,-690.92,0.00036232,30]
[322610455,1713118667077,-624.61,0.00036232,30]
[322610456,1713118667111,-690.92,0.00036232,30]
[322610457,1713118667142,-500.0,0.00036232,30]
[322610458,1713118667173,-500.0,0.00036232,30]
[322610459,1713118667209,-624.72595377,0.00036232,30]
[322610460,1713118667239,-219.02617606,0.00036232,30]
[322610461,1713118667270,-690.92,0.00036232,30]
[322610462,1713118667301,-690.92,0.00036232,30]
[322610463,1713118667333,-500.0,0.00036232,30]
[322610464,1713118667371,-500.0,0.00036232,30]
[322610465,1713118667404,-500.0,0.00036232,30]
[322610466,1713118667437,-690.92,0.00036232,30]
[322610467,1713118667470,-500.0,0.00036232,30]
[322610468,1713118667502,-690.92,0.00036232,30]
[322610469,1713118667535,-500.0,0.00036232,30]
[322610470,1713118667567,-690.92,0.00036232,30]
[322610471,1713118667602,-500.0,0.00036232,30]
[322610472,1713118667635,-690.97701217,0.00036232,30]
[322610473,1713118667667,-500.0,0.00036232,30]
[322610474,1713118667699,-500.0,0.00036232,30]
[322610475,1713118667731,-500.0,0.00036232,30]
[322610476,1713118667769,-501.29864417,0.00036232,30]
[322610477,1713118667806,-500.0,0.00036232,30]
[322610478,1713118667845,-500.0,0.00036232,30]
[322610479,1713118667878,-500.0,0.00036232,30]
[322610480,1713118667912,-500.0,0.00036232,30]
[322610481,1713118667945,-612.36,0.00036232,30]
[322610482,1713118667978,-500.0,0.00036232,30]
[322610483,1713118668009,-500.0,0.00036232,30]
[322610484,1713118668042,-612.36,0.00036232,30]
[322610485,1713118668074,-500.0,0.00036232,30]
[322610486,1713118668108,-612.36,0.00036232,30]
[322610487,1713118668140,-500.0,0.00036232,30]
[322610488,1713118668171,-500.36042925,0.00036232,30]
[322610489,1713118668202,-612.36,0.00036232,30]
[322610490,1713118668233,-500.0,0.00036232,30]
[322610491,1713118668263,-500.0,0.00036232,30]
[322610492,1713118668295,-612.36,0.00036232,30]
[322610493,1713118668326,-502.9728627,0.00036232,30]
[322610494,1713118668360,-612.36,0.00036232,30]
[322610495,1713118668396,-500.0,0.00036232,30]
[322610496,1713118668427,-612.36,0.00036232,30]
[322610497,1713118668458,-500.0,0.00036232,30]
[322610498,1713118668489,-336.66,0.00036232,30]
[322610499,1713118668520,-612.36,0.00036232,30]
[322610500,1713118668551,-612.36,0.00036232,30]
[322610501,1713118668583,-612.36,0.00036232,30]
[322610502,1713118668620,-612.36,0.00036232,30]
[322610503,1713118668650,-612.36,0.00036232,30]
[322610504,1713118668680,-612.36,0.00036232,30]
[322610505,1713118668945,-612.36,0.00036232,30]
[322610506,1713118668980,-612.36,0.00036232,30]
[322610507,1713118669013,-298.75528547,0.00036232,30]
[322610508,1713118669046,-612.36,0.00036232,30]
[322610509,1713118669079,-612.36,0.00036232,30]
[322610510,1713118669113,-612.36,0.00036232,30]
[322610511,1713118669145,-612.36,0.00036232,30]
[322610512,1713118669176,-612.36,0.00036232,30]
[322610513,1713118669207,-500.0,0.00036232,30]
[322610514,1713118669239,-612.36,0.00036232,30]
[322610515,1713118669271,-500.0,0.00036232,30]
[322610516,1713118669301,-612.36,0.00036232,30]
[322610517,1713118669332,-500.0,0.00036232,30]
[322610518,1713118669365,-500.0,0.00036232,30]
[322610519,1713118669402,-612.36,0.00036232,30]
[322610520,1713118669433,-500.0,0.00036232,30]
[322610521,1713118669464,-500.0,0.00036232,30]
[322610522,1713118669496,-612.54,0.00036232,30]
[322610523,1713118669526,-500.0,0.00036232,30]
[322610524,1713118669557,-500.0,0.00036232,30]
[322610525,1713118669590,-500.0,0.00036232,30]
[322610526,1713118669620,-559.20599373,0.00036232,30]
[322610527,1713118669652,-500.0,0.00036232,30]
[322610528,1713118669682,-500.60457447,0.00036232,30]
[322610529,1713118669714,-500.0,0.00036232,30]
[322610530,1713118669745,-500.0,0.00036232,30]
[322610531,1713118669781,-500.0,0.00036232,30]
[322610532,1713118669819,-590.09022829,0.00036232,30]
[322610533,1713118669854,-500.0,0.00036232,30]
[322610534,1713118669890,-500.0,0.00036232,30]
[322610535,1713118669928,-500.0,0.00036232,30]
[322610536,1713118669960,-500.0,0.00036232,30]
[322610537,1713118669993,-500.0,0.00036232,30]
[322610538,1713118670026,-500.0,0.00036232,30]
[322610539,1713118670059,-500.0,0.00036232,30]
[322610540,1713118670097,-500.0,0.00036232,30]
[322610541,1713118670129,-500.0,0.00036232,30]
[322610542,1713118670161,-500.0,0.00036232,30]
[322610543,1713118670197,-236.0380814,0.00036232,30]
[322610544,1713118670230,-500.0,0.00036232,30]
[322610545,1713118670262,-500.0,0.00036232,30]
[322610546,1713118670294,-500.0,0.00036232,30]
[322610547,1713118670327,-500.0,0.00036232,30]
[322610548,1713118670363,-500.0,0.00036232,30]
[322610549,1713118670396,-500.0,0.00036232,30]
[322610550,1713118670429,-500.0,0.00036232,30]
[322610551,1713118670461,-500.0,0.00036232,30]
[322610552,1713118670493,-500.0,0.00036232,30]
[322610553,1713118670526,-500.0,0.00036232,30]
[322610554,1713118670559,-500.0,0.00036232,30]
[322610555,1713118670596,-500.0,0.00036232,30]
[322610556,1713118670630,-500.0,0.00036232,30]
[322610557,1713118670665,-500.0,0.00036232,30]
[322610558,1713118670700,-500.0,0.00036232,30]
[322610559,1713118670734,-500.0,0.00036232,30]
[322610560,1713118670767,-500.0,0.00036232,30]
[322610561,1713118670799,-500.0,0.00036232,30]
[322610562,1713118670832,-500.0,0.00036232,30]
[322610563,1713118670868,-500.0,0.00036232,30]
[322610564,1713118670903,-500.0,0.00036232,30]
[322610565,1713118670942,-500.0,0.00036232,30]
[322610566,1713118670974,-157.76764296,0.00036232,30]
[322610567,1713118671008,-500.0,0.00036232,30]
[322610568,1713118671040,-801.3,0.00036232,30]
[322610569,1713118671072,-417.51023119,0.00036232,30]
[322610570,1713118671108,-801.3,0.00036232,30]
[322610571,1713118671141,-611.7281682,0.00036232,30]
[322610572,1713118671174,-177.45754578,0.00036232,30]
[322610573,1713118671208,-801.3,0.00036232,30]
[322610574,1713118671241,-500.0,0.00036232,30]
[322610575,1713118671274,-801.3,0.00036232,30]
[322610576,1713118671308,-500.0,0.00036232,30]
[322610577,1713118671346,-500.0,0.00036232,30]
[322610578,1713118671380,-544.99,0.00036232,30]
[322610579,1713118671413,-801.3,0.00036232,30]
[322610580,1713118671445,-503.79795015,0.00036232,30]
[322610581,1713118671476,-544.99,0.00036232,30]
[322610582,1713118671508,-801.3,0.00036232,30]
[322610583,1713118671540,-544.99,0.00036232,30]
[322610584,1713118671572,-801.3,0.00036232,30]